[Event "Swedish Chess Championship 2019: Kadett-SM"]
[Site "Stiga Sports Arena, Arenatorget 1, Eskilstuna, Sweden, Sweden"]
[Date "2019.07.12"]
[Round "6.6"]
[White "Bensryd, Hampus"]
[Black "Nilsson, Oliver"]
[Result "1-0"]
[TimeControl "90 minutes for 40 moves + 30 minutes for the rest of the game + 30 seconds per move from move one"]
[WhiteFideId "1738330"]
[BlackFideId "1730177"]
[WhiteElo "1938"]
[BlackElo "1574"]

1. e4 {[%clk 01:30:20]} d6 {[%clk 01:30:53]} 2. d4 {[%clk 01:30:20]} Nf6 {[%clk
01:30:53]} 3. Nc3 {[%clk 01:30:20]} g6 {[%clk 01:30:53]} 4. f4 {[%clk
01:30:20]} Bg7 {[%emt 21:04:49]} 5. Nf3 {[%clk 01:29:31]} O-O {[%clk 01:31:16]}
6. Be2 {[%clk 01:29:31]} c6 {[%clk 01:31:16]} 7. O-O {[%clk 01:29:31]} Nbd7
{[%clk 01:31:16]} 8. Qe1 {[%clk 01:29:31]} Ng4 {[%clk 01:31:16]} 9. h3 {[%clk
01:29:31]} Nh6 {[%clk 01:31:16]} 10. Be3 {[%clk 01:29:31]} f5 {[%clk 01:31:16]}
11. Bc4+ {[%clk 01:29:31]} Kh8 {[%clk 01:31:16]} 12. e5 {[%clk 01:29:31]} d5
{[%clk 01:31:16]} 13. Bd3 {[%clk 01:29:31]} Nb6 {[%clk 01:31:16]} 14. Ne2
{[%clk 01:29:31]} Nc4 {[%clk 01:31:16]} 15. Bxc4 {[%clk 01:29:31]} dxc4 {[%clk
01:09:19]} {[%emt 00:45:15]} 16. Ng5 {[%clk 01:14:22]} e6 {[%clk 01:09:19]} 17.
Qh4 {[%clk 01:14:22]} b5 {[%clk 01:09:19]} 18. c3 {[%clk 01:14:22]} Qd5 {[%clk
01:09:19]} 19. Kh2 {[%clk 01:14:22]} Bb7 {[%clk 01:09:19]} 20. Rf2 {[%clk
01:14:22]} a5 {[%clk 01:09:19]} 21. g4 {[%clk 01:14:22]} a4 {[%clk 01:09:19]}
22. a3 {[%clk 01:14:22]} Rae8 {[%clk 01:09:19]} 23. Ng1 {[%clk 01:14:22]} Kg8
{[%clk 01:09:19]} 24. N1f3 {[%clk 01:14:22]} Bc8 {[%clk 01:09:19]} 25. Rg1
{[%clk 01:14:22]} Bd7 {[%clk 01:09:19]} 26. Rfg2 {[%clk 01:14:22]} fxg4 {[%clk
01:09:19]} 27. hxg4 {[%clk 01:14:22]} Bc8 {[%clk 01:09:19]} 28. Rg3 {[%clk
01:14:22]} Bd7 {[%emt 01:40:57]} 29. Nxh7 Kxh7 {[%clk 00:17:32]} 30. g5 {[%clk
00:40:58]} {[%emt 00:00:13]} Rf5 {[%clk 00:17:38]} {[%emt 00:00:24]} 31. gxh6
{[%clk 00:39:20]} {[%emt 00:02:08]} Rh5 {[%clk 00:17:55]} {[%emt 00:00:12]} 32.
Qxh5 {[%clk 00:39:33]} {[%emt 00:00:17]} gxh5 {[%clk 00:18:15]} {[%emt
00:00:10]} 33. Rxg7+ {[%clk 00:39:39]} {[%emt 00:00:23]} Kh8 {[%clk 00:18:35]}
{[%emt 00:00:10]} 34. Ng5 {[%clk 00:39:16]} {[%emt 00:00:52]} Rf8 {[%clk
00:17:30]} {[%emt 00:01:36]} 35. Rh7+ {[%clk 00:39:29]} {[%emt 00:00:16]} 1-0

[Event "Swedish Chess Championship 2019: Kadett-SM"]
[Site "Stiga Sports Arena, Arenatorget 1, Eskilstuna, Sweden, Sweden"]
[Date "2019.07.12"]
[Round "7.1"]
[White "Zarytovskaya, Margo"]
[Black "Nguyen, Gabriel"]
[Result "1/2-1/2"]
[TimeControl "90 minutes for 40 moves + 30 minutes for the rest of the game + 30 seconds per move from move one"]
[WhiteFideId "14149249"]
[BlackFideId "1720791"]
[WhiteElo "1895"]
[BlackElo "2035"]

1. e4 {[%clk 01:30:58]} {[%emt 00:00:02]} c5 {[%clk 01:30:53]} {[%emt
00:00:07]} 2. Nf3 {[%clk 01:31:21]} {[%emt 00:00:06]} e6 {[%clk 01:31:18]}
{[%emt 00:00:06]} 3. d4 {[%clk 01:31:48]} {[%emt 00:00:04]} cxd4 {[%clk
01:31:44]} {[%emt 00:00:04]} 4. Nxd4 {[%clk 01:32:14]} {[%emt 00:00:04]} a6
{[%clk 01:31:47]} {[%emt 00:00:27]} 5. Bd3 {[%clk 01:32:33]} {[%emt 00:00:10]}
Bc5 {[%clk 01:31:42]} {[%emt 00:00:35]} 6. Nb3 {[%clk 01:32:46]} {[%emt
00:00:16]} Be7 {[%clk 01:32:08]} {[%emt 00:00:05]} 7. Qg4 {[%clk 01:32:46]}
{[%emt 00:00:30]} g6 {[%clk 01:32:32]} {[%emt 00:00:07]} 8. Qe2 {[%clk
01:33:03]} {[%emt 00:00:13]} d6 {[%clk 01:32:48]} {[%emt 00:00:13]} 9. Nc3
{[%clk 01:32:49]} {[%emt 00:00:44]} Nd7 {[%clk 01:33:08]} {[%emt 00:00:10]} 10.
O-O {[%clk 01:32:33]} {[%emt 00:00:46]} Qc7 {[%clk 01:32:42]} {[%emt 00:00:56]}
11. f4 {[%clk 01:31:01]} {[%emt 00:02:01]} Ngf6 {[%clk 01:32:19]} {[%emt
00:00:53]} 12. f5 {[%clk 01:29:26]} {[%emt 00:02:06]} Ne5 {[%clk 01:26:20]}
{[%emt 00:06:29]} 13. Bg5 {[%clk 01:27:14]} {[%emt 00:02:42]} O-O {[%clk
01:24:12]} {[%emt 00:02:38]} 14. Rad1 {[%clk 01:23:04]} {[%emt 00:04:39]} b5
{[%clk 01:22:47]} {[%emt 00:01:55]} 15. a3 {[%clk 01:21:28]} {[%emt 00:02:06]}
Bb7 {[%clk 01:20:23]} {[%emt 00:02:54]} 16. Kh1 {[%clk 01:18:14]} {[%emt
00:03:43]} Rad8 {[%clk 01:14:55]} {[%emt 00:05:58]} 17. Qe1 {[%clk 01:16:18]}
{[%emt 00:02:27]} h5 {[%clk 01:07:19]} {[%emt 00:08:05]} 18. Qh4 {[%clk
01:14:46]} {[%emt 00:02:02]} Kg7 {[%clk 01:02:45]} {[%emt 00:05:05]} 19. Nd4
{[%clk 01:11:07]} {[%emt 00:04:09]} Bc8 {[%clk 01:01:30]} {[%emt 00:01:45]} 20.
Nce2 {[%clk 01:08:31]} {[%emt 00:03:05]} Qb6 {[%clk 00:52:13]} {[%emt
00:09:47]} 21. c3 {[%clk 01:04:48]} {[%emt 00:04:13]} Neg4 {[%clk 00:50:15]}
{[%emt 00:02:28]} 22. h3 {[%clk 01:01:24]} {[%emt 00:03:54]} Rh8 {[%clk
00:49:05]} {[%emt 00:01:40]} 23. fxg6 {[%clk 00:54:56]} {[%emt 00:06:58]} e5
{[%clk 00:41:00]} {[%emt 00:08:35]} 24. Nf5+ {[%clk 00:27:04]} {[%emt
00:28:23]} 1/2-1/2

[Event "Swedish Chess Championship 2019: Kadett-SM"]
[Site "Stiga Sports Arena, Arenatorget 1, Eskilstuna, Sweden, Sweden"]
[Date "2019.07.12"]
[Round "7.2"]
[White "Mitra, Akash"]
[Black "Ivarsson, Sebastian"]
[Result "1-0"]
[TimeControl "90 minutes for 40 moves + 30 minutes for the rest of the game + 30 seconds per move from move one"]
[WhiteFideId "1726714"]
[BlackFideId "1738593"]
[WhiteElo "1957"]
[BlackElo "2079"]

1. e4 {[%clk 01:30:56]} {[%emt 00:00:02]} e5 {[%clk 01:30:45]} {[%emt
00:00:13]} 2. Nf3 {[%clk 01:31:10]} {[%emt 00:00:18]} Nc6 {[%clk 01:31:07]}
{[%emt 00:00:06]} 3. Bb5 {[%clk 01:31:37]} {[%emt 00:00:05]} a6 {[%clk
01:30:47]} {[%emt 00:00:50]} 4. Ba4 {[%clk 01:32:00]} {[%emt 00:00:06]} Nf6
{[%clk 01:31:07]} {[%emt 00:00:11]} 5. d3 {[%clk 01:32:19]} {[%emt 00:00:12]}
b5 {[%clk 01:30:51]} {[%emt 00:00:45]} 6. Bb3 {[%clk 01:32:41]} {[%emt
00:00:08]} Be7 {[%clk 01:30:33]} {[%emt 00:00:48]} 7. c3 {[%clk 01:32:44]}
{[%emt 00:00:27]} d6 {[%clk 01:30:23]} {[%emt 00:00:40]} 8. Nbd2 {[%clk
01:32:56]} {[%emt 00:00:18]} O-O {[%clk 01:29:18]} {[%emt 00:01:34]} 9. Nf1
{[%clk 01:31:32]} {[%emt 00:01:55]} Na5 {[%clk 01:26:51]} {[%emt 00:02:57]} 10.
Bc2 {[%clk 01:30:07]} {[%emt 00:01:55]} Re8 {[%clk 01:24:48]} {[%emt 00:02:33]}
11. h3 {[%clk 01:27:48]} {[%emt 00:02:49]} Bf8 {[%clk 01:22:25]} {[%emt
00:02:53]} 12. g4 {[%clk 01:28:02]} {[%emt 00:00:16]} g6 {[%clk 01:16:28]}
{[%emt 00:06:27]} 13. Ng3 {[%clk 01:28:05]} {[%emt 00:00:27]} Bg7 {[%clk
01:11:22]} {[%emt 00:05:37]} 14. g5 {[%clk 01:25:13]} {[%emt 00:03:22]} Nd7
{[%clk 01:11:44]} {[%emt 00:00:08]} 15. Nh2 {[%clk 01:20:10]} {[%emt 00:05:33]}
Nf8 {[%clk 01:06:08]} {[%emt 00:06:05]} 16. h4 {[%clk 01:18:14]} {[%emt
00:02:26]} Ne6 {[%clk 01:00:03]} {[%emt 00:06:36]} 17. Qf3 {[%clk 01:12:42]}
{[%emt 00:06:02]} f6 {[%clk 00:47:32]} {[%emt 00:13:02]} 18. b4 {[%clk
01:10:21]} {[%emt 00:02:51]} Nc6 {[%clk 00:46:54]} {[%emt 00:01:08]} 19. Bb3
{[%clk 01:08:54]} {[%emt 00:01:57]} Kh8 {[%clk 00:38:48]} {[%emt 00:08:37]} 20.
h5 {[%clk 00:59:33]} {[%emt 00:09:50]} Nxg5 {[%clk 00:30:52]} {[%emt 00:08:26]}
21. Bxg5 {[%clk 00:59:37]} {[%emt 00:00:26]} fxg5 {[%clk 00:30:52]} {[%emt
00:00:30]} 22. hxg6 {[%clk 00:59:28]} {[%emt 00:00:38]} h6 {[%clk 00:30:46]}
{[%emt 00:00:35]} 23. Ng4 {[%clk 00:52:56]} {[%emt 00:07:02]} Bxg4 {[%clk
00:28:19]} {[%emt 00:02:58]} 24. Qxg4 {[%clk 00:52:49]} {[%emt 00:00:36]} Rf8
{[%clk 00:14:03]} {[%emt 00:14:46]} 25. Nf5 {[%clk 00:43:23]} {[%emt 00:09:56]}
Qf6 {[%clk 00:08:26]} {[%emt 00:06:08]} 26. Qh5 {[%clk 00:41:02]} {[%emt
00:02:50]} 1-0

[Event "Swedish Chess Championship 2019: Kadett-SM"]
[Site "Stiga Sports Arena, Arenatorget 1, Eskilstuna, Sweden, Sweden"]
[Date "2019.07.12"]
[Round "7.3"]
[White "Muntean, Victor"]
[Black "Lindholm, Gustav"]
[Result "1/2-1/2"]
[TimeControl "90 minutes for 40 moves + 30 minutes for the rest of the game + 30 seconds per move from move one"]
[WhiteFideId "1054414"]
[BlackFideId "1736515"]
[WhiteElo "1971"]
[BlackElo "1950"]

1. e4 {[%clk 01:30:58]} {[%emt 00:00:01]} d5 {[%clk 01:30:57]} {[%emt
00:00:04]} 2. exd5 {[%clk 01:31:19]} {[%emt 00:00:09]} Qxd5 {[%clk 01:31:20]}
{[%emt 00:00:07]} 3. d4 {[%clk 01:31:29]} {[%emt 00:00:20]} Nf6 {[%clk
01:31:39]} {[%emt 00:00:10]} 4. Nf3 {[%clk 01:31:22]} {[%emt 00:00:37]} c6
{[%clk 01:31:12]} {[%emt 00:00:57]} 5. c4 {[%clk 01:27:21]} {[%emt 00:04:31]}
Qd8 {[%clk 01:31:28]} {[%emt 00:00:14]} 6. Nc3 {[%clk 01:26:46]} {[%emt
00:01:05]} Bg4 {[%clk 01:30:34]} {[%emt 00:01:23]} 7. Be2 {[%clk 01:26:58]}
{[%emt 00:00:18]} e6 {[%clk 01:29:54]} {[%emt 00:01:11]} 8. O-O {[%clk
01:26:19]} {[%emt 00:01:09]} Bd6 {[%clk 01:26:07]} {[%emt 00:04:18]} 9. h3
{[%clk 01:18:41]} {[%emt 00:08:08]} Bh5 {[%clk 01:23:20]} {[%emt 00:03:17]} 10.
Qb3 {[%clk 01:12:58]} {[%emt 00:06:14]} Qc7 {[%clk 01:12:47]} {[%emt 00:11:03]}
11. Bg5 {[%clk 01:09:41]} {[%emt 00:03:47]} Nbd7 {[%clk 01:08:42]} {[%emt
00:04:35]} 12. d5 {[%clk 01:08:33]} {[%emt 00:01:38]} exd5 {[%clk 01:04:55]}
{[%emt 00:04:16]} 13. cxd5 {[%clk 01:08:36]} {[%emt 00:00:27]} O-O {[%clk
01:03:38]} {[%emt 00:01:47]} 14. dxc6 {[%clk 01:07:09]} {[%emt 00:01:58]} bxc6
{[%clk 01:02:52]} {[%emt 00:01:16]} 15. Rac1 {[%clk 01:06:39]} {[%emt
00:00:59]} Qb6 {[%clk 00:55:50]} {[%emt 00:07:31]} 16. Qxb6 {[%clk 01:05:57]}
{[%emt 00:01:14]} axb6 {[%clk 00:55:05]} {[%emt 00:01:15]} 17. Rfd1 {[%clk
01:06:16]} {[%emt 00:00:11]} Bc5 {[%clk 00:46:37]} {[%emt 00:08:59]} 18. g4
{[%clk 00:55:34]} {[%emt 00:11:12]} Bg6 {[%clk 00:46:34]} {[%emt 00:00:32]} 19.
Nd4 {[%clk 00:54:38]} {[%emt 00:01:27]} Ne4 {[%clk 00:37:05]} {[%emt 00:09:59]}
20. Nxe4 {[%clk 00:49:46]} {[%emt 00:05:22]} Bxe4 {[%clk 00:37:22]} {[%emt
00:00:13]} 21. Bc4 {[%clk 00:49:02]} {[%emt 00:01:13]} Ne5 {[%clk 00:36:18]}
{[%emt 00:01:34]} 22. Be3 {[%clk 00:43:56]} {[%emt 00:05:36]} Nxc4 {[%clk
00:32:49]} {[%emt 00:03:59]} 23. Rxc4 {[%clk 00:43:37]} {[%emt 00:00:49]} Bd5
{[%clk 00:29:59]} {[%emt 00:03:20]} 24. Rcc1 {[%clk 00:42:54]} {[%emt
00:01:14]} Rxa2 {[%clk 00:29:16]} {[%emt 00:01:13]} 25. b4 {[%clk 00:42:43]}
{[%emt 00:00:41]} Bxb4 {[%clk 00:21:35]} {[%emt 00:08:11]} 26. Nxc6 {[%clk
00:42:53]} {[%emt 00:00:21]} Ba3 {[%clk 00:10:41]} {[%emt 00:11:24]} 27. Rc3
{[%clk 00:41:27]} {[%emt 00:01:55]} Bxc6 {[%clk 00:09:42]} {[%emt 00:01:30]} 28.
Rxc6 {[%clk 00:41:22]} {[%emt 00:00:35]} b5 {[%clk 00:09:40]} {[%emt 00:00:32]}
29. Rc7 {[%clk 00:40:51]} {[%emt 00:01:01]} h6 {[%clk 00:05:47]} {[%emt
00:04:23]} 30. Rdd7 {[%clk 00:39:35]} {[%emt 00:01:46]} Rb2 {[%clk 00:04:42]}
{[%emt 00:01:36]} 31. Ra7 {[%clk 00:37:16]} {[%emt 00:02:49]} Rb3 {[%clk
00:04:36]} {[%emt 00:00:36]} 32. Kg2 {[%clk 00:34:06]} {[%emt 00:03:40]} Rc3
{[%clk 00:03:46]} {[%emt 00:01:20]} 33. h4 {[%clk 00:32:20]} {[%emt 00:02:16]}
Bc1 {[%clk 00:02:03]} {[%emt 00:02:13]} 34. Bb6 {[%clk 00:21:57]} {[%emt
00:10:54]} Rc4 {[%clk 00:02:00]} {[%emt 00:00:33]} 35. f3 {[%clk 00:21:14]}
{[%emt 00:01:12]} Bf4 {[%clk 00:01:07]} {[%emt 00:01:23]} 36. Rab7 {[%clk
00:18:36]} {[%emt 00:03:09]} b4 {[%clk 00:01:14]} {[%emt 00:00:23]} 37. Ba5
{[%clk 00:18:28]} {[%emt 00:00:37]} Rc2+ {[%clk 00:01:05]} {[%emt 00:00:39]} 38.
Kf1 {[%clk 00:17:38]} {[%emt 00:01:19]} Rc1+ {[%clk 00:01:27]} {[%emt
00:00:08]} 39. Kg2 {[%clk 00:15:10]} {[%emt 00:02:59]} Rfc8 {[%clk 00:01:37]}
{[%emt 00:00:20]} 40. Rd8+ {[%clk 00:15:04]} {[%emt 00:00:36]} Rxd8 {[%clk
00:01:59]} {[%emt 00:00:08]} 41. Bxd8 {[%clk 00:15:28]} {[%emt 00:00:06]} Rb1
{[%clk 00:01:39]} {[%emt 00:00:50]} 42. Ba5 {[%clk 00:14:26]} {[%emt 00:01:33]}
b3 {[%clk 00:01:45]} {[%emt 00:00:24]} 43. Bc3 {[%clk 00:14:04]} {[%emt
00:00:51]} Bc1 {[%clk 00:01:36]} {[%emt 00:00:39]} 44. Rb8+ {[%clk 00:12:37]}
{[%emt 00:01:57]} Kh7 {[%clk 00:01:55]} {[%emt 00:00:11]} 45. h5 {[%clk
00:12:02]} {[%emt 00:01:06]} b2 {[%clk 00:01:32]} {[%emt 00:00:53]} 46. Kh3
{[%clk 00:10:56]} {[%emt 00:01:37]} f6 {[%clk 00:12:29]} {[%emt 00:19:32]} 47.
Kg3 {[%clk 00:37:13]} {[%emt 00:04:13]} Bd2 {[%clk 00:11:38]} {[%emt 00:01:21]}
48. Bd4 {[%clk 00:35:49]} {[%emt 00:01:55]} Bc3 {[%clk 00:10:49]} {[%emt
00:01:19]} 49. Bxc3 {[%clk 00:35:27]} {[%emt 00:00:52]} Rg1+ {[%clk 00:11:13]}
{[%emt 00:00:07]} 50. Kf4 {[%clk 00:34:19]} {[%emt 00:01:38]} b1=Q {[%clk
00:11:30]} {[%emt 00:00:12]} 51. Rxb1 {[%clk 00:34:45]} {[%emt 00:00:05]} Rxb1
{[%clk 00:11:53]} {[%emt 00:00:07]} 52. Ke4 {[%clk 00:34:23]} {[%emt 00:00:51]}
Kg8 {[%clk 00:11:28]} {[%emt 00:00:55]} 53. Bd2 {[%clk 00:34:13]} {[%emt
00:00:40]} Rb2 {[%clk 00:11:21]} {[%emt 00:00:37]} 54. Bc3 {[%clk 00:34:34]}
{[%emt 00:00:09]} Rb3 {[%clk 00:11:43]} {[%emt 00:00:08]} 55. Bd2 {[%clk
00:34:50]} {[%emt 00:00:14]} Kf7 {[%clk 00:11:25]} {[%emt 00:00:48]} 56. Be1
{[%clk 00:34:14]} {[%emt 00:01:06]} Ke6 {[%clk 00:11:26]} {[%emt 00:00:30]} 57.
Bd2 {[%clk 00:34:01]} {[%emt 00:00:43]} Rb2 {[%clk 00:11:33]} {[%emt 00:00:23]}
58. Bc3 {[%clk 00:33:50]} {[%emt 00:00:40]} Rb3 {[%clk 00:11:26]} {[%emt
00:00:36]} 59. Bd2 {[%clk 00:34:13]} {[%emt 00:00:07]} Ra3 {[%clk 00:11:36]}
{[%emt 00:00:21]} 60. Kf4 {[%clk 00:32:42]} {[%emt 00:02:01]} Ra4+ {[%clk
00:11:39]} {[%emt 00:00:27]} 61. Kg3 {[%clk 00:33:04]} {[%emt 00:00:08]} Kd5
{[%clk 00:10:35]} {[%emt 00:01:34]} 62. Bf4 {[%clk 00:31:53]} {[%emt 00:01:41]}
Kd4 {[%clk 00:10:14]} {[%emt 00:00:51]} 63. Bd6 {[%clk 00:32:16]} {[%emt
00:00:07]} Ke3 {[%clk 00:10:08]} {[%emt 00:00:36]} 64. Bf8 {[%clk 00:32:34]}
{[%emt 00:00:12]} Ke2 {[%clk 00:08:48]} {[%emt 00:01:50]} 65. Bxg7 {[%clk
00:32:03]} {[%emt 00:01:01]} Ra3 {[%clk 00:08:56]} {[%emt 00:00:22]} 66. Bxh6
{[%clk 00:30:46]} {[%emt 00:01:46]} Rxf3+ {[%clk 00:09:20]} {[%emt 00:00:06]}
67. Kg2 {[%clk 00:29:34]} {[%emt 00:01:41]} Rf2 {[%clk 00:09:00]} {[%emt
00:00:50]} 68. Kg3 {[%clk 00:29:57]} {[%emt 00:00:08]} Rf3+ {[%clk 00:09:22]}
{[%emt 00:00:08]} 69. Kg2 {[%clk 00:30:20]} 1/2-1/2

[Event "Swedish Chess Championship 2019: Kadett-SM"]
[Site "Stiga Sports Arena, Arenatorget 1, Eskilstuna, Sweden, Sweden"]
[Date "2019.07.12"]
[Round "7.4"]
[White "Dingertz, Erik"]
[Black "Bensryd, Hampus"]
[Result "1/2-1/2"]
[TimeControl "90 minutes for 40 moves + 30 minutes for the rest of the game + 30 seconds per move from move one"]
[WhiteFideId "1741578"]
[BlackFideId "1738330"]
[WhiteElo "1959"]
[BlackElo "1938"]

1. c4 {[%clk 01:30:43]} {[%emt 00:00:17]} e5 {[%clk 01:30:52]} {[%emt
00:00:05]} 2. g3 {[%clk 01:31:11]} {[%emt 00:00:05]} Nc6 {[%clk 01:30:37]}
{[%emt 00:00:45]} 3. Bg2 {[%clk 01:31:34]} {[%emt 00:00:05]} f5 {[%clk
01:30:32]} {[%emt 00:00:36]} 4. Nc3 {[%clk 01:31:58]} {[%emt 00:00:06]} Nf6
{[%clk 01:30:57]} {[%emt 00:00:05]} 5. d3 {[%clk 01:32:20]} {[%emt 00:00:08]}
g6 {[%clk 01:30:49]} {[%emt 00:00:39]} 6. Rb1 {[%clk 01:32:35]} {[%emt
00:00:16]} a5 {[%clk 01:30:14]} {[%emt 00:01:05]} 7. a3 {[%clk 01:32:57]}
{[%emt 00:00:08]} Bg7 {[%clk 01:30:01]} {[%emt 00:00:42]} 8. b4 {[%clk
01:33:20]} {[%emt 00:00:07]} axb4 {[%clk 01:29:44]} {[%emt 00:00:48]} 9. axb4
{[%clk 01:33:43]} {[%emt 00:00:06]} O-O {[%clk 01:29:18]} {[%emt 00:00:56]} 10.
Nf3 {[%clk 01:33:35]} {[%emt 00:00:38]} d6 {[%clk 01:28:33]} {[%emt 00:01:15]}
11. b5 {[%clk 01:33:47]} {[%emt 00:00:18]} Ne7 {[%clk 01:27:38]} {[%emt
00:01:25]} 12. Qb3 {[%clk 01:34:06]} {[%emt 00:00:11]} Kh8 {[%clk 01:27:20]}
{[%emt 00:00:48]} 13. O-O {[%clk 01:30:32]} {[%emt 00:04:04]} h6 {[%clk
01:26:00]} {[%emt 00:01:51]} 14. Nd2 {[%clk 01:30:23]} {[%emt 00:00:38]} f4
{[%clk 01:23:34]} {[%emt 00:02:56]} 15. Ba3 {[%clk 01:24:37]} {[%emt 00:06:16]}
Nd7 {[%clk 01:12:27]} {[%emt 00:11:37]} 16. Nde4 {[%clk 01:20:56]} {[%emt
00:04:10]} Nf5 {[%clk 01:08:52]} {[%emt 00:04:06]} 17. c5 {[%clk 01:17:48]}
{[%emt 00:03:39]} Nd4 {[%clk 01:05:42]} {[%emt 00:03:40]} 18. Qb2 {[%clk
01:16:45]} {[%emt 00:01:30]} d5 {[%clk 00:53:47]} {[%emt 00:12:28]} 19. c6
{[%clk 01:08:45]} {[%emt 00:08:31]} Nb6 {[%clk 00:43:52]} {[%emt 00:10:25]} 20.
Bxf8 {[%clk 01:05:58]} {[%emt 00:03:16]} Bxf8 {[%clk 00:44:16]} {[%emt
00:00:06]} 21. Nd2 {[%clk 01:05:41]} {[%emt 00:00:47]} Ba3 {[%clk 00:44:24]}
{[%emt 00:00:21]} 22. Qa2 {[%clk 01:04:28]} {[%emt 00:01:43]} Bf8 {[%clk
00:38:17]} {[%emt 00:06:37]} 23. Qb2 {[%clk 01:04:52]} {[%emt 00:00:07]} Ba3
{[%clk 00:38:42]} {[%emt 00:00:05]} 24. Qa2 {[%clk 01:05:19]} {[%emt 00:00:02]}
Bf8 {[%clk 00:38:40]} {[%emt 00:00:31]} 25. Qb2 {[%clk 01:05:45]} {[%emt
00:00:04]} Ba3 {[%clk 00:39:04]} {[%emt 00:00:07]} 1/2-1/2